[Event "Susha Chess Blitz 2022"]
[Site "Shusha"]
[Date "2022.09.24"]
[Round "1"]
[White "Durarbayli, Vasif"]
[Black "Wang, Hao"]
[Result "1/2-1/2"]
[ECO "C55"]
[WhiteElo "2628"]
[BlackElo "2722"]
[Annotator "TA"]
[PlyCount "136"]
[EventDate "2022.09.24"]
[EventType "tourn"]
[EventCountry "AZE"]
[SourceTitle "playchess.com"]
[Source "ChessBase"]
[SourceQuality "1"]
[TimeControl "180+2"]

{[%evp 12,136,43,52,39,42,56,35,31,20,20,21,22,20,12,6,30,30,29,26,34,8,38,54,55,14,31,24,25,24,64,16,16,13,59,58,52,16,20,14,18,2,7,0,11,-8,0,0,0,0,0,0,0,0,0,0,0,0,0,0,31,17,81,64,65,63,66,62,64,67,78,82,78,48,176,168,162,8,8,8,8,8,8,0,0,0,0,0,0,0,0,0,0,0,0,0,0,0,0,0,0,0,0,0,0,0,0,0,0,0,0,0,0,0,0,0,0,0,0,0,0,0,0,0,0,0,0]} 1. e4 {[%emt 0:00:02]} e5 {[%emt 0:00:01]} 2. Nf3 {[%emt 0:00:01]} Nc6 {[%emt 0:00:01]} 3. Bc4 {[%emt 0:00:01]} Nf6 {[%emt 0:00:01]} 4. d3 {[%emt 0:00:00][%cal Bd2d3,Bd3d4][%mdl 32]} d5 {[%emt 0:00:01]} 5. exd5 {[%emt 0:00:06]} Nxd5 {[%emt 0:00:01]} 6. O-O {[%emt 0:00:14]} Be7 {[%emt 0:00:01]} 7. Re1 {[%emt 0:00:09]} f6 $1 {[%emt 0:00:01][%mdl 4] is currently scoring better than 7...Bg4. C24: Bishop's Opening: 2...Nf6.} 8. d4 {[%emt 0:00:13][%cal Rd4e5]} Nb6 {[%emt 0:00:02][%csl LRc4,LRd4]} 9. Bb5 {[%emt 0:00:06]} O-O {[%emt 0:00:03] White is slightly better.} 10. dxe5 {[%emt 0:00:15]} (10. Bxc6 {keeps more tension.} bxc6 11. Qe2 Bg4 12. dxe5 fxe5 13. Nbd2) 10... Qxd1 {[%emt 0:00:12]} 11. Rxd1 {[%emt 0:00:01]} Nxe5 {[%emt 0:00:15]} 12. Nxe5 {[%emt 0:00:01]} fxe5 {[%emt 0:00:01] [#]} 13. Nc3 $146 {[%emt 0:00:15]} ({Predecessor:} 13. Be3 Bf5 14. Nd2 c6 15. Bd3 Bxd3 16. cxd3 Nd5 17. Nc4 Nxe3 18. fxe3 Rad8 19. Nxe5 {½-½ (42) Harsha,B (2489)-Paravyan,D (2617) Warsaw 2021}) 13... c6 {[%emt 0:00:26]} 14. Bd3 {[%emt 0:00:05]} Be6 {[%emt 0:00:32]} 15. Ne4 {[%emt 0:00:12]} h6 {[%emt 0:00:08]} 16. Be3 {[%emt 0:00:11]} Nd5 {[%emt 0:00:05]} 17. Bc5 {[%emt 0:00:04]} Rfe8 {[%emt 0:00:06]} 18. Bc4 {[%emt 0:00:20]} b6 {[%emt 0:00:12]} (18... Bf5 $5 {[%cal Rf5e4]} 19. Bxe7 Bxe4 $11) 19. Bxe7 {[%emt 0:00:09]} Rxe7 {[%emt 0:00:02]} 20. Rd2 {[%emt 0:00:00]} a5 {[%emt 0:00:11]} 21. a3 {[%emt 0:00:23]} (21. Re1 $14) 21... Rd8 $11 {[%emt 0:00:21]} 22. Re1 {[%emt 0:00:01]} Kf8 {[%emt 0:00:08]} (22... Red7 $11 {was preferrable.}) 23. Ng3 $14 {[%emt 0:00:29]} Bf7 {[%emt 0:00:08]} 24. Nf5 {[%emt 0:00:03]} (24. Be2 $5 {[%cal Rc2c4]} Rdd7 25. Bg4 $14) 24... Ree8 {[%emt 0:00:11]} 25. Red1 {[%emt 0:00:06]} Rd7 {[%emt 0:00:16]} 26. Bb3 {[%emt 0:00:09]} Red8 {[%emt 0:00:05]} 27. Ne3 {[%emt 0:00:10]} b5 {[%emt 0:00:08]} 28. a4 {[%emt 0:00:05]} Be6 {[%emt 0:00:15]} 29. axb5 {[%emt 0:00:03]} Nxe3 {[%emt 0:00:02]} 30. Rxd7 {[%emt 0:00:03]} Bxd7 {[%emt 0:00:01]} ({Resist} 30... Rxd7 31. Rxd7 Bxd7 32. b6 $16 (32. bxc6 Nd1 $11)) 31. fxe3 {[%emt 0:00:04]} cxb5 $11 {[%emt 0:00:01][%mdl 4096] Endgame KRB-KRB} 32. Rd5 {[%emt 0:00:01]} a4 {[%emt 0:00:01]} 33. Ba2 {[%emt 0:00:00]} Ke7 {[%emt 0:00:03]} 34. Rxe5+ {[%emt 0:00:03]} Kd6 {[%emt 0:00:01]} 35. Rd5+ {[%emt 0:00:01]} Kc6 {[%emt 0:00:01]} 36. Rd4 {[%emt 0:00:05] Black should prevent Be6.} Re8 {[%emt 0:00:02] Inhibits Be6.} (36... Rf8 $11) 37. Bd5+ {[%emt 0:00:01]} Kc5 {[%emt 0:00:01]} 38. Bf3 $1 {[%emt 0:00:03]} Be6 {[%emt 0:00:02]} 39. c3 {[%emt 0:00:02] Prevents b4.} Bc4 {[%emt 0:00:03]} 40. Kf2 $1 {[%emt 0:00:00]} Re7 {[%emt 0:00:02] Inhibits Rd7.} 41. h4 {[%emt 0:00:01]} Ra7 {[%emt 0:00:01]} 42. Rg4 {[%emt 0:00:02]} a3 {[%emt 0:00:02] [#]} ({Black should try} 42... Kd6 $14) 43. Rg6 $1 $18 {[%emt 0:00:05][%csl Gc3][%cal Rb2b4]} Bd5 {[%emt 0:00:03]} 44. Bxd5 $2 {[%emt 0:00:02]} (44. bxa3 $18 {aiming for Ke2.} Kc4 45. Rg4+ Kc5 46. Bxd5 Kxd5 47. Kf3) 44... Kxd5 $11 {The position is equal.} 45. bxa3 {[%emt 0:00:00]} Rxa3 {[%emt 0:00:04]} 46. Rxg7 {[%emt 0:00:01]} Rxc3 $18 {[%emt 0:00:01] KR-KR} 47. Rh7 {[%emt 0:00:05]} Rc6 {[%emt 0:00:02]} 48. Rd7+ {[%emt 0:00:02]} Kc4 {[%emt 0:00:02]} 49. Rd1 {[%emt 0:00:02] [#] Hoping for Rc1+.} Rf6+ {[%emt 0:00:02]} 50. Ke2 {[%emt 0:00:01]} b4 {[%emt 0:00:01]} 51. Rc1+ {[%emt 0:00:00]} Kb5 {[%emt 0:00:02]} 52. e4 {[%emt 0:00:01]} b3 {[%emt 0:00:02]} 53. Ke3 {[%emt 0:00:02]} Kb4 {[%emt 0:00:02]} 54. e5 {[%emt 0:00:00]} Rg6 {[%emt 0:00:01]} 55. Kf3 {[%emt 0:00:08]} b2 {[%emt 0:00:02]} 56. Rb1 {[%emt 0:00:01]} Kc3 {[%emt 0:00:01] Strongly threatening ...h5.} 57. g4 {[%emt 0:00:02]} Kc2 {[%emt 0:00:03]} 58. Rxb2+ {[%emt 0:00:01]} Kxb2 $11 {[%emt 0:00:01] KR-K3P} 59. Kf4 {[%emt 0:00:00]} Kc3 {[%emt 0:00:02]} 60. Kf5 {[%emt 0:00:01]} Rg8 {[%emt 0:00:03]} 61. e6 {[%emt 0:00:05]} Kd4 {[%emt 0:00:00]} 62. g5 {[%emt 0:00:00]} hxg5 {[%emt 0:00:03]} 63. hxg5 {[%emt 0:00:01] KR-KPP} Kd5 {[%emt 0:00:01]} 64. Kf6 {[%emt 0:00:07]} Kd6 {[%emt 0:00:01]} 65. e7 {[%emt 0:00:02] Prevents Rf8+.} Kd7 {[%emt 0:00:02]} 66. g6 {[%emt 0:00:01]} Re8 {[%emt 0:00:03]} 67. g7 {[%emt 0:00:03]} Rg8 {[%emt 0:00:01] ( -> ...Ke8)} 68. Kf7 {[%emt 0:00:01]} Rxg7+ {[%emt 0:00:01] Weighted Error Value: White=0.10 (very precise) /Black=0.12 (very precise)} 1/2-1/2

[Event "Susha Chess Blitz 2022"]
[Site "Shusha"]
[Date "2022.09.24"]
[Round "2"]
[White "Wang, Hao"]
[Black "Durarbayli, Vasif"]
[Result "0-1"]
[ECO "C41"]
[WhiteElo "2722"]
[BlackElo "2628"]
[Annotator "TA"]
[PlyCount "50"]
[EventDate "2022.09.24"]
[EventType "tourn"]
[EventCountry "AZE"]
[SourceTitle "playchess.com"]
[Source "ChessBase"]
[SourceQuality "1"]
[TimeControl "180+2"]

{[%evp 12,50,26,15,27,-24,-15,-26,-10,0,4,-1,14,20,6,-33,30,0,0,-13,0,-41,-33,-100,0,0,6,17,-7,-618,-608,-1014,-1004,-1189,-860,-29996,-29997,-29997,-1360,-29998,-29999]} 1. e4 e5 2. Nf3 {[%emt 0:00:03]} d6 {[%emt 0:00:00]} 3. d4 {[%emt 0:00:02]} exd4 {[%emt 0:00:01]} 4. Qxd4 {[%emt 0:00:02]} Nf6 {[%emt 0:00:05]} 5. Nc3 {[%emt 0:00:02]} Be7 {[%emt 0:00:06]} 6. Bg5 {[%emt 0:00:07]} O-O {[%emt 0:00:04]} 7. O-O-O {[%emt 0:00:02]} h6 $5 {[%emt 0:00:01][%mdl 4] An interesting side line. C41: Philidor Defence.} 8. Bh4 {[%emt 0:00:05]} (8. Bf4 $142) 8... Nc6 $11 {[%emt 0:00:05]} 9. Qd3 {[%emt 0:00:43]} Be6 {[%emt 0:00:12] [#] Black has an edge.} 10. Kb1 $146 {[%emt 0:00:06]} ({Predecessor:} 10. Nd4 Nxd4 11. Qxd4 a6 12. f4 c5 13. Qd3 b5 14. e5 dxe5 15. fxe5 Ng4 16. Qe4 Bxh4 17. Rxd8 Raxd8 {1-0 (58) Zhigalko,S (2572)-Moroni,L (2580) Chess.com INT 2021}) 10... a5 {[%emt 0:00:18]} 11. Rg1 {[%emt 0:00:09]} Nb4 {[%emt 0:00:27]} 12. Qe2 {[%emt 0:00:13]} Re8 {[%emt 0:00:10]} 13. Nd4 {[%emt 0:00:29]} Qc8 {[%emt 0:00:21]} (13... Bd7 $15) 14. Nxe6 {[%emt 0:00:10]} Qxe6 {[%emt 0:00:02]} 15. Bg3 {[%emt 0:00:26]} c6 {[%emt 0:00:16]} 16. a3 {[%emt 0:00:03]} b5 {[%emt 0:00:11]} 17. f4 {[%emt 0:00:19]} (17. axb4 $2 axb4 18. Nd5 cxd5 19. exd5 Qd7 20. Qxb5 Qa7 $19) ({White should play} 17. Qf3 $15) 17... Bf8 {[%emt 0:00:13] Black is more active.} (17... Na6 $17 {Hoping for ...b4.} 18. e5 dxe5 19. fxe5 Ng4) 18. f5 {[%emt 0:00:04]} ({Avoid the trap} 18. axb4 $2 axb4 19. Nd5 (19. f5 $2 Qd7 $19) 19... cxd5 $19) 18... Qd7 {[%emt 0:00:21][%cal Od7b7]} 19. Qf3 {[%emt 0:00:03]} (19. axb4 axb4 20. Bf2 (20. Nxb5 $2 Nxe4 21. c3 Nxc3+ 22. Nxc3 Rxe2 $19) 20... bxc3 $19) 19... Qb7 {[%emt 0:00:19]} 20. axb4 {[%emt 0:00:23][%mdl 8192] [#] This move loses the game for White.} (20. Bh4 $11) 20... axb4 $19 {[%emt 0:00:01][%cal Ba5b4,Bb4b3][%mdl 32]} 21. Nxb5 {[%emt 0:00:03]} cxb5 {[%emt 0:00:06]} 22. e5 {[%emt 0:00:02]} Ne4 {[%emt 0:00:02]} 23. Bd3 {[%emt 0:00:06] [#]} Qa7 $1 {[%emt 0:00:08][%csl Ga8][%cal Ra7a1]} 24. c3 {[%emt 0:00:04]} Qa1+ {[%emt 0:00:05]} 25. Kc2 b3+ {Weighted Error Value: White=1.02/Black=0.47} 0-1

[Event "Susha Chess Blitz 2022"]
[Site "Shusha"]
[Date "2022.09.24"]
[Round "2"]
[White "Maghsoodloo, Parham"]
[Black "Radjabov, Teimour"]
[Result "1-0"]
[ECO "E06"]
[WhiteElo "2721"]
[BlackElo "2747"]
[Annotator "TA"]
[PlyCount "89"]
[EventDate "2022.09.24"]
[EventType "tourn"]
[EventCountry "AZE"]
[SourceTitle "playchess.com"]
[Source "ChessBase"]
[SourceQuality "1"]
[TimeControl "180+2"]

{[%evp 18,89,24,19,16,8,13,13,31,29,35,35,29,25,34,31,19,20,20,18,21,13,20,14,23,18,19,15,35,23,47,47,93,90,104,101,106,60,67,61,64,43,64,47,70,37,45,47,58,62,63,25,21,18,23,21,25,34,33,19,22,0,3,0,1007,991,1003,1029,1010,993,981,966,957,946]} 1. d4 {[%emt 0:00:02]} Nf6 {[%emt 0:00:01]} 2. c4 {[%emt 0:00:01]} e6 {[%emt 0:00:01]} 3. Nf3 {[%emt 0:00:03]} d5 {[%emt 0:00:03]} 4. g3 {[%emt 0:00:01]} Be7 {[%emt 0:00:01]} 5. Bg2 {[%emt 0:00:02]} O-O {[%emt 0:00:02]} 6. O-O {[%emt 0:00:02]} dxc4 {[%emt 0:00:01]} 7. Qc2 {[%emt 0:00:01]} a6 {[%emt 0:00:05]} 8. a4 {[%emt 0:00:01]} Bd7 {[%emt 0:00:01]} 9. Qxc4 {[%emt 0:00:02]} Bc6 {[%emt 0:00:01]} 10. Bf4 {[%emt 0:00:02]} Bd6 {[%emt 0:00:09] E05: Open Catalan: 5 Nf3 Be7.} 11. Qc1 {[%emt 0:00:01]} Nbd7 {[%emt 0:00:08]} 12. Nc3 {[%emt 0:00:02]} Bxf3 {[%emt 0:00:08] The position is equal.} 13. Bxf3 {[%emt 0:00:01]} Bxf4 {[%emt 0:00:04]} 14. Qxf4 {[%emt 0:00:02]} c6 {[%emt 0:00:01]} 15. a5 {[%emt 0:00:11]} Qe7 {[%emt 0:00:01]} 16. Rfd1 {[%emt 0:00:01] [#]} Rad8 $146 {[%emt 0:00:04]} ({Predecessor:} 16... e5 17. Qe3 Rae8 18. d5 e4 19. d6 Qe6 20. Bg2 Nd5 21. Qxe4 Nxc3 22. Qxe6 Nxe2+ 23. Qxe2 Rxe2 {1-0 (37) So,W (2765)-Navara,D (2738) Saint Louis 2019}) 17. Bg2 {[%emt 0:00:05]} Rfe8 {[%emt 0:00:17]} 18. h3 {[%emt 0:00:03]} e5 {[%emt 0:00:11]} 19. dxe5 {[%emt 0:00:02]} Nxe5 {[%emt 0:00:01]} 20. Rxd8 {[%emt 0:00:01]} Rxd8 21. Ra4 {[%emt 0:00:01]} h5 {[%emt 0:00:12]} 22. Qe3 {[%emt 0:00:32]} Re8 {[%emt 0:00:07]} 23. Qb6 {[%emt 0:00:09]} Rc8 {[%emt 0:00:34]} 24. Rd4 {[%emt 0:00:48]} Ng6 {[%emt 0:00:28]} (24... Kh7 $14 {feels stronger.}) 25. Ne4 $16 {[%emt 0:00:25]} Nd5 {[%emt 0:00:12] [#]} 26. Qc5 {[%emt 0:00:02] Threatens to win with Rxd5.} Rc7 {[%emt 0:00:23]} 27. e3 {[%emt 0:00:10]} ({White should try} 27. Qxe7 $16 Rxe7 28. Bf3) 27... Nf8 $1 $14 {[%emt 0:00:04]} 28. Qxe7 {[%emt 0:00:10]} Rxe7 {[%emt 0:00:05]} 29. Nd6 {[%emt 0:00:34]} Ne6 {[%emt 0:00:08]} 30. Rd2 {[%emt 0:00:07]} ({Don't play} 30. Bxd5 Nxd4 31. Bxf7+ Kf8 32. Bxh5 (32. exd4 Rd7 $17) 32... Nb3 $17) 30... Nf6 {[%emt 0:00:10]} 31. Nf5 {[%emt 0:00:13] White is more active.} Rc7 {[%emt 0:00:04]} 32. e4 {[%emt 0:00:04][%cal Be3e4,Be4e5][%mdl 32]} g6 {[%emt 0:00:05]} 33. Ne3 {[%emt 0:00:03]} h4 {[%emt 0:00:03]} 34. e5 {[%emt 0:00:03]} Nd7 {[%emt 0:00:00]} 35. Nc4 {[%emt 0:00:01]} hxg3 {[%emt 0:00:02]} 36. fxg3 {[%emt 0:00:01]} Kg7 {[%emt 0:00:01]} 37. h4 {[%emt 0:00:01]} Ndc5 {[%emt 0:00:11]} 38. b4 {[%emt 0:00:01]} Nb3 {[%emt 0:00:00]} 39. Rd3 {[%emt 0:00:03]} Nbd4 {[%emt 0:00:01]} 40. Nd6 {[%emt 0:00:01] [#] Hoping for Ne8+.} Nf5 $2 {[%emt 0:00:07][%mdl 8192]} (40... Kf8 $11) 41. Ne8+ $18 {[%emt 0:00:02] White is clearly winning.} Kf8 {[%emt 0:00:03]} 42. Nxc7 {[%emt 0:00:01]} Nxc7 {[%emt 0:00:01]} 43. Rd7 {[%emt 0:00:01]} Ne6 {[%emt 0:00:04]} 44. Rxb7 {[%emt 0:00:01]} Ned4 {[%emt 0:00:00]} 45. Kf2 {[%emt 0:00:03] Weighted Error Value: White=0.07 (flawless) /Black=0.08 (flawless)} 1-0

[Event "Susha Chess Blitz 2022"]
[Site "Shusha"]
[Date "2022.09.24"]
[Round "2"]
[White "Vidit, Santosh Gujrathi"]
[Black "Yilmaz, Mustafa"]
[Result "0-1"]
[ECO "B94"]
[WhiteElo "2710"]
[BlackElo "2633"]
[Annotator "TA"]
[PlyCount "71"]
[EventDate "2022.09.24"]
[EventType "tourn"]
[EventCountry "AZE"]
[SourceTitle "playchess.com"]
[Source "ChessBase"]
[SourceQuality "1"]
[TimeControl "180+2"]

{[%evp 13,71,-12,25,18,39,33,34,28,13,16,13,25,0,49,19,31,28,22,20,-2,0,-123,-137,-171,-158,-167,-159,-169,-167,-246,-241,-349,-353,-378,-378,-433,-433,-469,-463,-489,-409,-424,-416,-468,-399,-397,-397,-397,-389,-481,-488,-547,-538,-978,-952,-29996,-984,-919,-905,-804]} 1. e4 c5 2. Nf3 d6 3. d4 cxd4 4. Nxd4 Nf6 5. Nc3 {[%emt 0:00:06]} a6 {[%emt 0:00:02]} 6. Bg5 {[%emt 0:00:02]} Nbd7 {[%emt 0:00:01]} 7. f4 {[%emt 0:00:02] 7.Qe2 is setting a new trend.} Qc7 {[%emt 0:00:02]} (7... e5 {keeps more tension.} 8. Nf5 Qb6 9. Qd2 Qxb2 10. Rb1 Qa3) 8. Qf3 {[%emt 0:00:02] B94: Sicilian Najdorf: 6 Bg5 Nbd7.} h6 {[%emt 0:00:01]} 9. Bxf6 {[%emt 0:00:04]} Nxf6 {[%emt 0:00:01]} 10. f5 {[%emt 0:00:01] White is slightly better.} Qc5 {[%emt 0:00:01]} 11. O-O-O {[%emt 0:00:03]} g5 $1 {[%emt 0:00:01]} 12. fxg6 {[%emt 0:00:03]} Bg4 {[%emt 0:00:01]} 13. gxf7+ {[%emt 0:00:02]} Kxf7 {[%emt 0:00:02]} 14. Qd3 {[%emt 0:00:02] [#] Black must now prevent Be2.} Bxd1 {[%emt 0:00:03]} 15. Nxd1 {[%emt 0:00:01][%cal Bc3d1,Bd1e3,Be3f5][%mdl 32] Hoping for g3. Pair of Knights!} Bg7 {[%emt 0:00:07][%cal Bf8g7,Bg7d4,Bd4e5][%mdl 32]} 16. Ne3 {[%emt 0:00:20] [#] Threatens to win with Qb3+.} Nxe4 $146 {[%emt 0:00:25] Active counter play!} ({Predecessor:} 16... e6 17. g3 Rhe8 18. Bh3 b5 19. Rd1 Qe5 20. c3 Qxe4 21. Qe2 Rac8 22. Bg2 Qe5 {0-1 (71) Paravyan,D (2617)-Donchenko,A (2636) Chess.com INT 2022}) 17. Qxe4 {[%emt 0:00:09]} (17. Nef5 $11 {keeps the balance.} Bxd4 18. Qxe4) 17... Qxd4 $17 {[%emt 0:00:17] Dancing on a razor blade. Black converts the advantage convincingly.} 18. Bc4+ {[%emt 0:00:28]} Ke8 {[%emt 0:00:06]} 19. Qxd4 {[%emt 0:00:55]} Bxd4 {[%emt 0:00:01]} 20. Nf5 {[%emt 0:00:01]} Be5 {[%emt 0:00:07]} 21. Be6 {[%emt 0:00:03]} (21. Nh4 $142) 21... Rf8 $19 {[%emt 0:00:12] [#] aiming for ...Rf6.} 22. g4 {[%emt 0:00:02]} (22. Ne3 $142) 22... Rf6 {[%emt 0:00:04]} 23. Bd5 {[%emt 0:00:02]} e6 {[%emt 0:00:20]} 24. Bxb7 {[%emt 0:00:09]} Rb8 {[%emt 0:00:00]} ({And not} 24... exf5 25. Bxa8 fxg4 26. h3 $17) 25. Bc6+ {[%emt 0:00:02]} Kd8 {[%emt 0:00:21]} 26. Ne3 {[%emt 0:00:01]} Bxb2+ {[%emt 0:00:07]} 27. Kd2 {[%emt 0:00:03]} Kc7 {[%emt 0:00:05]} 28. Ba4 {[%emt 0:00:04]} Rf2+ {[%emt 0:00:07]} 29. Ke1 {[%emt 0:00:07]} Rf4 {[%emt 0:00:20]} 30. Bb3 {[%emt 0:00:02]} Bd4 {[%emt 0:00:09]} 31. Ke2 {[%emt 0:00:06]} d5 {[%emt 0:00:09]} 32. Bxd5 {[%emt 0:00:03]} Rb5 {[%emt 0:00:20]} 33. c4 {[%emt 0:00:11]} Ra5 {[%emt 0:00:09]} 34. Ng2 {[%emt 0:00:28]} Rf2+ {[%emt 0:00:03]} (34... Rxa2+ $142 35. Kd1 Rff2 36. Be4 Ra1+ 37. Bb1 Rxb1#) 35. Kd3 {[%emt 0:00:01]} exd5 {[%emt 0:00:01]} 36. Kxd4 {Weighted Error Value: White=0.65/Black=0.29 (precise)} 0-1

[Event "Susha Chess Blitz 2022"]
[Site "Shusha"]
[Date "2022.09.24"]
[Round "2"]
[White "Guseinov, Gadir"]
[Black "Mamedyarov, Shakhriyar"]
[Result "1-0"]
[ECO "B10"]
[WhiteElo "2661"]
[BlackElo "2757"]
[Annotator "TA"]
[PlyCount "133"]
[EventDate "2022.09.24"]
[EventType "tourn"]
[EventCountry "AZE"]
[SourceTitle "playchess.com"]
[Source "ChessBase"]
[SourceQuality "1"]
[TimeControl "180+2"]

{[%evp 9,133,12,27,9,40,33,38,25,34,18,12,17,19,18,28,14,43,34,40,-20,40,18,104,102,100,98,136,57,97,52,123,27,20,15,39,8,13,7,10,0,70,51,75,21,49,29,62,72,160,102,349,347,548,-101,-86,-108,-114,-107,-114,-114,-97,-103,-102,-107,-83,-134,-135,-135,-89,-93,-107,-101,-92,-91,-63,-211,0,-42,37,0,0,-20,1278,0,0,0,0,0,0,0,0,0,0,0,0,-37,347,347,347,347,347,347,346,320,448,448,477,469,1000,469,465,457,870,0,358,220,837,974,863,804,1914,968,5065,5065,5057,1638]} 1. e4 {[%emt 0:00:02]} c6 {[%emt 0:00:02]} 2. Nf3 {[%emt 0:00:02]} d5 {[%emt 0:00:01]} 3. e5 {[%emt 0:00:01]} Bg4 {[%emt 0:00:02]} 4. Be2 {[%emt 0:00:03]} e6 {[%emt 0:00:01]} 5. O-O {[%emt 0:00:01]} Ne7 {[%emt 0:00:02]} 6. d4 {[%emt 0:00:04] B10: Caro-Kann: 2 d3 and 2 c4.} h6 {[%emt 0:00:04]} 7. Nbd2 {[%emt 0:00:04]} Nd7 {[%emt 0:00:01]} 8. h3 {[%emt 0:00:01] White is slightly better.} Bh5 {[%emt 0:00:05] [#]} 9. c4 $146 {[%emt 0:00:01]} ({Predecessor:} 9. b3 Nc8 10. c4 Be7 11. Ne1 Bxe2 12. Qxe2 O-O 13. Qg4 Re8 14. Ndf3 Kh7 15. Nd3 dxc4 16. bxc4 {1-0 (37) Tsaruk,M (2230)-Yasiukovich,S Minsk 2019}) 9... dxc4 {[%emt 0:00:07]} 10. Nxc4 $40 {[%emt 0:00:01][%cal Rc4d6][%mdl 128] White is up to no good.} Nd5 {[%emt 0:00:00]} 11. Nfd2 {[%emt 0:00:06]} Bg6 {[%emt 0:00:03]} 12. Bh5 {[%emt 0:00:07] Threatens to win with Bxg6.} Bxh5 {[%emt 0:00:08]} 13. Qxh5 {[%emt 0:00:01]} N7b6 {[%emt 0:00:01]} 14. Qf3 {[%emt 0:00:29]} (14. b3 $14) 14... Qd7 {[%emt 0:00:09]} (14... Nb4 $11) 15. b3 $14 {[%emt 0:00:13]} Bb4 {[%emt 0:00:04]} (15... Nb4 $11 {remains equal.}) 16. Ne4 $1 $16 {[%emt 0:00:02]} Nc8 {[%emt 0:00:38]} 17. Qg3 {[%emt 0:00:07]} Bf8 {[%emt 0:00:24]} 18. f4 {[%emt 0:00:08] White has more active pieces.} (18. a4 $16) 18... b5 {[%emt 0:00:04]} 19. Ne3 {[%emt 0:00:04]} Ncb6 {[%emt 0:00:06]} (19... Nxe3 $1 $14 20. Bxe3 Nb6) 20. Bd2 {[%emt 0:00:15]} (20. f5 $1 $16) 20... Nxe3 $11 {[%emt 0:00:34]} 21. Bxe3 {[%emt 0:00:00]} Nd5 {[%emt 0:00:01]} 22. Bd2 {[%emt 0:00:17]} g6 {[%emt 0:00:03]} 23. Rac1 {[%emt 0:00:07]} Be7 {[%emt 0:00:06]} 24. Qf3 {[%emt 0:00:32]} O-O-O {[%emt 0:00:32]} (24... Kf8 $11) 25. a4 {[%emt 0:00:04]} Kb8 {[%emt 0:00:02]} 26. Kh1 {[%emt 0:00:18]} (26. Ra1 $16) 26... Rc8 {[%emt 0:00:01]} 27. Qe2 {[%emt 0:00:07]} Rhd8 {[%emt 0:00:02]} 28. Ba5 {[%emt 0:00:02]} Nb6 {[%emt 0:00:12]} (28... Rg8 $142) 29. Rfd1 {[%emt 0:00:04]} (29. Nc5 $142 $1 {[%cal Rc5d7]} Qe8 30. Qf2) 29... Qd5 {[%emt 0:00:03]} (29... Qb7 $16 {was called for.}) 30. Nc5 $18 {[%emt 0:00:01]} bxa4 {[%emt 0:00:15]} (30... g5 $142 31. axb5 gxf4 32. bxc6 Rxc6) 31. Qa6 $2 {[%emt 0:00:03]} (31. bxa4 $18 Rd7 32. Rb1 Bxc5 33. dxc5) 31... Bxc5 $17 {[%emt 0:00:01]} 32. dxc5 {[%emt 0:00:11]} Qxd1+ {[%emt 0:00:01]} 33. Rxd1 {[%emt 0:00:01]} Rxd1+ {[%emt 0:00:01]} 34. Kh2 {[%emt 0:00:01]} Nd5 {[%emt 0:00:04]} 35. bxa4 {[%emt 0:00:07][%cal Oa5b6]} Rb1 {[%emt 0:00:03] Prevents Bb6.} (35... Nxf4 $2 36. Qc4 Rd7 37. Qxf4 $18) ({Don't play} 35... Rd4 $6 36. Bb6 $1 Nxb6 37. cxb6 $11) 36. Bd2 {[%emt 0:00:05]} h5 {[%emt 0:00:02]} 37. Qd3 {[%emt 0:00:03]} (37. Ba5 $142) 37... Rb2 {[%emt 0:00:01]} 38. Bc1 {[%emt 0:00:01]} Rb4 {[%emt 0:00:03]} ({Black should try} 38... Rb7 $1 39. Bd2 Rd8) 39. Bd2 {[%emt 0:00:01]} Rb7 {[%emt 0:00:02]} 40. Qf3 {[%emt 0:00:11][%cal Of4f5]} Ka8 {[%emt 0:00:03]} 41. f5 {[%emt 0:00:01]} exf5 {[%emt 0:00:02] And now ...Re7 would win.} 42. a5 {[%emt 0:00:04]} (42. e6 $1 $15) 42... Rb5 $2 {[%emt 0:00:05]} ({Black should play} 42... Re7 $19 43. Qe2 Re6) 43. a6 {[%emt 0:00:01][%cal Oe5e6]} (43. e6 $5) 43... Rxc5 {[%emt 0:00:03]} (43... Re8 $15 44. Qg3 Rbb8) 44. e6 {[%emt 0:00:00]} (44. Qa3 $5 {[%cal Ra3c5]} Rb5 45. Qd6 $11) 44... fxe6 {[%emt 0:00:01]} 45. Qg3 {[%emt 0:00:01]} Rc2 $2 {[%emt 0:00:03][%mdl 8192] [#]} (45... Nc7 $11) 46. Bg5 $2 {[%emt 0:00:04]} (46. Qb3 $1 $18 {[%csl Ga6][%cal Rb3b7]} Rc7 (46... Rb8 47. Qxc2) 47. Qxc2) 46... Ra2 {[%emt 0:00:02][%cal Bc2a2,Ba2a6,Ba6b6,Bb6b2][%mdl 32]} 47. Qd6 {[%emt 0:00:03] Threatening mate with Qd7.} Rxa6 {[%emt 0:00:01]} 48. Qxe6 {[%emt 0:00:00][%cal Re6c8]} Rb8 {[%emt 0:00:02]} 49. Qxg6 {[%emt 0:00:02]} f4 {[%emt 0:00:02][%cal Of4f3]} 50. Qxh5 {[%emt 0:00:01]} Rab6 {[%emt 0:00:01]} 51. Qf3 {[%emt 0:00:05]} Rb2 {[%emt 0:00:01]} 52. Bxf4 {[%emt 0:00:07]} Rf8 {[%emt 0:00:02][%mdl 8192] White leaves nothing to chance now.} (52... Nxf4 $15 {stays ahead.} 53. Qxf4 Rg8) 53. Qa3 $1 $18 {[%emt 0:00:00][%csl LRb2,LRf8]} Rxg2+ {[%emt 0:00:04]} 54. Kxg2 {[%emt 0:00:01]} Rxf4 {[%emt 0:00:02][%mdl 4096] Endgame KQ-KRN} 55. Kg3 {[%emt 0:00:03] Hoping for Qa6.} Kb7 {[%emt 0:00:02] Prevents Qa6+.} 56. h4 {[%emt 0:00:01]} Rf5 {[%emt 0:00:02]} 57. Kg4 {[%emt 0:00:08]} Rf2 {[%emt 0:00:03]} 58. h5 {[%emt 0:00:02]} Rh2 {[%emt 0:00:02]} (58... Nf6+ $142 59. Kg3 Ne4+ 60. Kh3 Ng5+ 61. Kg3 Ne4+ 62. Kh3 Ng5+ 63. Kg3 Ne4+) 59. Kg5 {[%emt 0:00:02]} (59. Qb3+ $142 Ka8 60. Qf3) 59... Rg2+ {[%emt 0:00:01]} 60. Kf5 {[%emt 0:00:02]} Rh2 {[%emt 0:00:02] Inhibits Qh3.} (60... Rf2+ $142 61. Kg4 Rg2+ 62. Kf3 Rh2) 61. Kg5 {[%emt 0:00:02]} (61. Qf3 $142 a5 62. Kg4) 61... Rg2+ 62. Kh6 Rh2 $2 {[%emt 0:00:05]} (62... Kc7 63. Qf3 Rg1) 63. Qg3 {[%emt 0:00:02] White is clearly winning.} Rh1 {[%emt 0:00:01]} 64. Kg5 {[%emt 0:00:01]} a5 {[%emt 0:00:04]} 65. h6 {[%emt 0:00:02] aiming for Qg2.} (65. Qg2 {[#] leads to mate.} Rxh5+ $3 {[%mdl 512]} 66. Kxh5 Nf4+ 67. Kh4 Nxg2+ 68. Kg4 a4 69. Kf3 a3 $1 70. Kxg2 c5 71. Kh3 a2 72. Kg4 a1=Q 73. Kf5 Qd4 74. Kg5 c4 75. Kg6 c3 76. Kf7 Qd5+ 77. Kf8 c2 78. Ke7 c1=Q 79. Kf8 Qcg5 80. Ke8 Qgd8#) 65... a4 {[%emt 0:00:01]} 66. Qg2 {[%emt 0:00:02]} Re1 67. h7 {Weighted Error Value: White=0.42/Black=0.45} (67. Qb2+ $142 Ka6 68. h7) 1-0